Cogmind - Beta 9.2 @@@ ROGUE MODE // 2019.11.27 @ 16:08:39 Player: Pitt Result: Destroyed by Y-54 Guardian with Gatling Laser Performance ------------- Evolutions (3) 1500 Regions Visited (7) 1400 Robots Destroyed (34) 170 Value Destroyed (758) 758 Prototype IDs (4) 80 Alien Tech Used (0) 0 Bonus (183) 183 TOTAL SCORE: 4091 Bonus ------- Follower Combat Kills 183 Cogmind --------- Core Integrity 0/700 Matter 296/300 Energy 100/100 System Corruption 0% Temperature Cool (12) Movement Core (600) Ox11 Location -7/Factory Parts ------- > --- POWER (2) -------- (None) > --- PROPULSION (2) --- (None) > --- UTILITY (6) ------ High-capacity Storage Unit Visual Processing Unit System Shield > --- WEAPON (3) ------- Spear > --- INVENTORY (12) --- Aluminum Leg Improved Heat Sink Structural Scanner Peak State ------------ > --- POWER ------------ Light Nuclear Core > --- PROPULSION ------- Aluminum Leg Aluminum Leg > --- UTILITY ---------- Small Storage Unit Structural Scanner Sensor Array Advanced Signal Interpreter Improved Terrain Scanner Hardened Medium Armor Plating > --- WEAPON ----------- Guided EMP Blaster > --- INVENTORY -------- Aluminum Leg Aluminum Leg Improved Heat Sink Mining Laser [Rating: 28] Favorites ----------- Power Light Ion Engine Engine Light Ion Engine Power Core Light Nuclear Core Propulsion Aluminum Leg Treads Light Treads Leg Aluminum Leg Utility Small Storage Unit Device Structural Scanner Storage Small Storage Unit Processor Advanced Signal Interpreter Hackware System Shield Protection Light Armor Plating Weapon Small Laser Energy Gun Small Laser Ballistic Gun Light Assault Rifle Launcher Guided EMP Blaster Special Weapon Mining Laser Piercing Weapon Spear Build | -11 -10 -10 -10 -9 -8 -8 -7 ------- Run | Scr Mat Min Exi Min Mat Sto Fac Slots Evolved 6 | . . . . . 4 . 2 Power 1 | . . . . . . . 1 Propulsion . | . . . . . . . . Utility 4 | . . . . . 4 . . Weapon 1 | . . . . . . . 1 Parts Attached 61 | 7 1 1 . 14 7 24 7 Power 10 | 1 . . . 5 . 2 2 Engine 6 | 1 . . . 3 . . 2 Core 4 | . . . . 2 . 2 . Reactor . | . . . . . . . . Propulsion 17 | 2 1 . . 6 . 6 2 Treads 5 | . . . . . . 3 2 Leg 12 | 2 1 . . 6 . 3 . Wheel . | . . . . . . . . Hover . | . . . . . . . . Flight . | . . . . . . . . Utility 14 | 2 . . . . 5 7 . Device 4 | . . . . . 3 1 . Storage 3 | 2 . . . . . 1 . Processor 3 | . . . . . 2 1 . Hackware 1 | . . . . . . 1 . Protection 3 | . . . . . . 3 . Artifact . | . . . . . . . . Weapon 20 | 2 . 1 . 3 2 9 3 Energy Gun 6 | 1 . 1 . 2 . 1 1 Energy Cannon . | . . . . . . . . Ballistic Gun 7 | 1 . . . 1 1 4 . Ballistic Cannon . | . . . . . . . . Launcher 4 | . . . . . . 3 1 Special Weapon 2 | . . . . . 1 1 . Impact Weapon . | . . . . . . . . Slashing Weapon . | . . . . . . . . Piercing Weapon 1 | . . . . . . . 1 Special Melee Weapon . | . . . . . . . . Unidentified Prototypes 2 | . . . . . 1 1 . Parts Lost 38 | . . . . 13 1 11 13 Power 9 | . . . . 4 1 2 2 Propulsion 10 | . . . . 4 . 2 4 Utility 8 | . . . . . . 5 3 Weapon 11 | . . . . 5 . 2 4 Highest Loss Streak 10 | . . . . 8 1 6 10 Average Slot Usage (%) 84 | . 100 100 100 75 85 83 52 Engine 7 | . 14 14 14 9 4 . 3 Core 1 | . . . . 2 . 2 . Treads 3 | . . . . . . 7 8 Leg 19 | . 28 28 28 27 18 9 . Device 7 | . . . . . 27 19 3 Storage 21 | . 28 28 28 28 18 12 11 Processor 4 | . . . . . 9 10 7 Hackware 1 | . . . . . . 1 7 Protection 1 | . . . . . . 5 2 Energy Gun 6 | . 14 15 28 4 . . . Ballistic Gun 9 | . 14 12 . 2 3 13 4 Naked Turns . | . . . . . . . . Heaviest Build 47 | 13 13 15 15 16 17 46 47 Greatest Support 40 | 20 20 20 20 25 25 40 40 Greatest Overweight (x) 15 | . . . . 5 . 2 15 Average Overweight (x) . | . . . . . . . 2 Largest Inventory Capacity 14 | 8 8 8 8 8 8 14 14 Average Capacity 8 | 6 8 8 8 8 8 7 13 Most Carried 8 | 5 8 8 8 8 7 6 6 Average Carried 6 | . 7 7 8 7 3 4 4 Final Capacity 14 | 8 8 8 8 8 8 14 12 Final Carried 8 | 5 8 8 8 8 4 6 3 Class Distribution -------------------- 49% | Mutant 47% | Scavenger-Mutant 3% | Skirmisher Dominant Class ---------------- Mutant | -10/Materials Mutant | -10/Mines Mutant | -10/Exiles Scavenger-Mutant | -9/Mines Scavenger-Mutant | -8/Materials Scavenger-Mutant | -8/Storage Scavenger-Mutant | -7/Factory Resources | -11 -10 -10 -10 -9 -8 -8 -7 ----------- Run | Scr Mat Min Exi Min Mat Sto Fac Matter Collected 966 | 248 33 24 . 110 . 427 124 Remotely . | . . . . . . . . Salvage Created 1265 | 150 79 . . 154 3 683 196 Parts 92 | 13 6 . . 8 . 52 13 Haulers Intercepted 4 | . 1 . . . . 2 1 Recyclers Shooed 1 | . . . . . . 1 . Parts Field Recycled . | . . . . . . . . Retrieved Matter . | . . . . . . . . Parts Self-Destructed . | . . . . . . . . Prevented . | . . . . . . . . Kills | -11 -10 -10 -10 -9 -8 -8 -7 ------- Run | Scr Mat Min Exi Min Mat Sto Fac Combat Hostiles Destroyed 20 | . 1 . . 4 . 13 2 Melee 2 | . . . . . . . 2 Guns 12 | . 1 . . 3 . 8 . AOE 6 | . . . . 1 . 5 . Classes Destroyed 9 | 3 2 . . . . 4 . Worker 2 | 1 . . . . . 1 . Builder 2 | . . . . . . 1 1 Tunneler 2 | 2 . . . . . . . Hauler 4 | . 1 . . . . 2 1 Recycler 3 | 1 . . . . . 2 . Watcher 1 | . . . . . . 1 . Swarmer 6 | . . . . . . 6 . Grunt 9 | . 1 . . 4 . 4 . Sentry 5 | . . . . . . 3 2 Best Kill Streak 5 | 2 1 . . 2 . 5 3 Combat Bots Only 3 | . 1 . . 2 . 3 1 Max Kills in Single Turn 2 | 1 1 . . 2 . 2 1 Gunslinging . | . . . . . . . . Exploded 1 | . . . . 1 . 1 . Melee 1 | . . . . . . . 1 Uniques/NPCs Destroyed . | . . . . . . . . Combat | -11 -10 -10 -10 -9 -8 -8 -7 -------- Run | Scr Mat Min Exi Min Mat Sto Fac Damage Taken 4555 | . 68 16 . 1057 376 1303 1735 Core 1260 | . 11 16 . 190 140 198 705 Absorbed by Shields . | . . . . . . . . Core Remaining (%) 50 | 100 . . . 13 . 38 . Volleys Fired 132 | 16 9 . . 16 7 76 8 Largest 2 | 2 2 . . 2 1 2 2 Hottest 105 | 60 60 . . 105 100 100 50 Shots Fired 169 | 30 18 . . 20 7 82 12 Gun 155 | 30 18 . . 20 5 71 11 Cannon . | . . . . . . . . Launcher 8 | . . . . . . 7 1 Special 6 | . . . . . 2 4 . Kinetic 108 | 16 9 . . 1 5 66 11 Thermal 53 | 14 9 . . 19 2 9 . Explosive . | . . . . . . . . Electromagnetic 8 | . . . . . . 7 1 Robot Hit Streak 8 | 8 4 . . 4 4 7 7 Robot Miss Streak 6 | 2 1 . . 3 2 6 2 Penetration Max . | . . . . . . . . Secondary Targets . | . . . . . . . . Shots Hit Robots 110 | 21 13 . . 12 4 47 13 Core Hits 57 | 6 4 . . 7 1 31 8 Critical Hits 2 | . . . . . . 1 1 Critical Kills . | . . . . . . . . Critical Parts Destroyed 1 | . . . . . . 1 . Melee Attacks 4 | . . . . . . . 4 Impact . | . . . . . . . . Slashing . | . . . . . . . . Piercing 4 | . . . . . . . 4 Sneak Attacks . | . . . . . . . . Combat Hostiles . | . . . . . . . . Follow-up Attacks . | . . . . . . . . Damage Inflicted 2279 | 181 114 . . 319 69 1277 319 Guns 1559 | 181 114 . . 174 69 885 136 Cannons . | . . . . . . . . Explosions 551 | . . . . 145 . 380 26 Melee 122 | . . . . . . . 122 Ramming 47 | . . . . . . 12 35 Kinetic 1127 | 59 49 . . . 69 814 136 Thermal 564 | 122 65 . . 237 . 140 . Explosive . | . . . . . . . . Electromagnetic 419 | . . . . 82 . 311 26 Impact . | . . . . . . . . Slashing . | . . . . . . . . Piercing 122 | . . . . . . . 122 Highest Corruption 1 | . . . . . 1 1 . Average Corruption 1 | . . . . . 1 1 . Corruption Purged . | . . . . . . . . Effects 3 | . . . . . . 3 . Message Errors 1 | . . . . . . 1 . Energy Discharges 1 | . . . . . . 1 . Data Loss (minor) 1 | . . . . . . 1 . Overload Shots . | . . . . . . . . Overflow Damage 6 | . . . . 4 . 2 . Projectiles . | . . . . . . . . Explosions 6 | . . . . 4 . 2 . Melee . | . . . . . . . . Knockbacks . | . . . . . . . . Impact . | . . . . . . . . Kinetic . | . . . . . . . . Secondary . | . . . . . . . . Self-Inflicted Damage 36 | . . . . 9 . 19 8 Shots 5 | . . . . 2 . 2 1 Rammed 10 | . . . . . . 2 8 Targets Rammed 11 | . . . . . . 2 9 Kicked . | . . . . . . . . Crushed 1 | . . . . . . . 1 Highest Temperature 140 | 40 70 . . 140 8 130 2 Average Temperature 40 | 20 33 . . 57 5 47 2 Received Heat Transfer 1831 | . 36 9 . 697 198 369 522 Siege Activations . | . . . . . . . . Robots Corrupted . | . . . . . . . . Combat Hostiles . | . . . . . . . . Parts Fried . | . . . . . . . . Impact Corruptions . | . . . . . . . . Robots Melted . | . . . . . . . . Combat Hostiles . | . . . . . . . . Parts Melted . | . . . . . . . . Heat Transferred 1220 | 275 150 . . 497 . 298 . Parts Sabotaged . | . . . . . . . . Parts Stolen . | . . . . . . . . Parts Stripped . | . . . . . . . . Power Chain Reactions 2 | . . . . 1 . 1 . Missiles Intercepted . | . . . . . . . . Alert | -11 -10 -10 -10 -9 -8 -8 -7 ------- Run | Scr Mat Min Exi Min Mat Sto Fac Peak Influence 218 | 20 46 56 . 156 86 218 45 Average Influence 49 | 7 23 15 . 32 62 104 21 Maximum Alert Level 1 | . . . . . . 1 . Low Security (%) 99 | 100 100 100 . 100 100 99 100 Level 1 . | . . . . . . . . Level 2 . | . . . . . . . . Level 3 . | . . . . . . . . Level 4 . | . . . . . . . . Level 5 . | . . . . . . . . High Security . | . . . . . . . . Max Security . | . . . . . . . . Squads Dispatched 3 | . . . . . 1 2 . Investigation 2 | . . . . . 1 1 . Extermination . | . . . . . . . . Reinforcement 1 | . . . . . . 1 . Assault . | . . . . . . . . Garrison . | . . . . . . . . Intercept . | . . . . . . . . Construction Impeded . | . . . . . . . . Haulers Reinforced . | . . . . . . . . Stealth | -11 -10 -10 -10 -9 -8 -8 -7 --------- Run | Scr Mat Min Exi Min Mat Sto Fac Distress Signals . | . . . . . . . . Communications Jammed . | . . . . . . . . Distress Signals . | . . . . . . . . Times Spotted 64 | . 2 2 . 27 4 25 4 Peak Tracking Total 9 | . 1 2 . 6 4 9 3 Tactical Retreats 9 | . . . . 7 . 1 1 Traps | -11 -10 -10 -10 -9 -8 -8 -7 ------- Run | Scr Mat Min Exi Min Mat Sto Fac Traps Triggered 2 | . . . . 1 . 1 . Indirectly 1 | . . . . 1 . . . Trap Hack Attempts . | . . . . . . . . Triggered . | . . . . . . . . Disarmed . | . . . . . . . . Reprogrammed . | . . . . . . . . Reused 1 | . . . . 1 . . . Traps Extracted . | . . . . . . . . Installed 2 | . . . . 2 . . . Triggered 2 | . . . . 1 . 1 . Machines | -11 -10 -10 -10 -9 -8 -8 -7 ---------- Run | Scr Mat Min Exi Min Mat Sto Fac Machines Disabled 2 | . . . . . 1 1 . Max in Single Turn 1 | . . . . . 1 1 . Machines Sabotaged . | . . . . . . . . Garrisons Compromised . | . . . . . . . . Overloaded Fab Kills . | . . . . . . . . Fab Network Shutdowns . | . . . . . . . . Hacking | -11 -10 -10 -10 -9 -8 -8 -7 --------- Run | Scr Mat Min Exi Min Mat Sto Fac Machines Accessed 6 | . 1 . . 1 2 2 . Terminals 5 | . 1 . . 1 2 1 . Fabricators . | . . . . . . . . Repair Stations . | . . . . . . . . Recycling Units 1 | . . . . . . 1 . Scanalyzers . | . . . . . . . . Garrison Access . | . . . . . . . . Total Hacks 14 | . 4 . . 3 4 3 . Successful 7 | . 2 . . 2 2 1 . Failed 7 | . 2 . . 1 2 2 . Catastrophic . | . . . . . . . . Database Lockouts . | . . . . . . . . Manual 3 | . 3 . . . . . . Terminals 13 | . 4 . . 3 4 2 . Fabricators . | . . . . . . . . Repair Stations . | . . . . . . . . Recycling Units 1 | . . . . . . 1 . Scanalyzers . | . . . . . . . . Garrison Access . | . . . . . . . . Terminal Hacks 6 | . 2 . . 2 2 . . Record 1 | . . . . . 1 . . Prototype ID Bank 1 | . . . . . 1 . . Dispatch Records 1 | . 1 . . . . . . Patrol Status 1 | . . . . 1 . . . Investigation Status 1 | . . . . 1 . . . Zone Layout 1 | . 1 . . . . . . Fabricator Hacks . | . . . . . . . . Repair Station Hacks . | . . . . . . . . Recycling Unit Hacks 1 | . . . . . . 1 . Report Inventory 1 | . . . . . . 1 . Scanalyzer . | . . . . . . . . Garrison Access Hacks . | . . . . . . . . Unauthorized Hacks . | . . . . . . . . Terminals . | . . . . . . . . Fabricators . | . . . . . . . . Repair Stations . | . . . . . . . . Recycling Units . | . . . . . . . . Scanalyzers . | . . . . . . . . Garrison Access . | . . . . . . . . Data Cores Recovered . | . . . . . . . . Used . | . . . . . . . . Hacking Detections 5 | . 1 . . 1 2 1 . Full Trace Events 2 | . . . . . 1 1 . Feedback Events 1 | . . . . . 1 . . Corruption 1 | . . . . . 1 . . Feedback Blocked . | . . . . . . . . Robot Schematics Acquired . | . . . . . . . . Robots Built . | . . . . . . . . Matter . | . . . . . . . . Time . | . . . . . . . . Total Robot Build Rating . | . . . . . . . . Part Schematics Acquired . | . . . . . . . . Parts Built . | . . . . . . . . Matter . | . . . . . . . . Time . | . . . . . . . . Total Part Build Rating . | . . . . . . . . Parts Repaired . | . . . . . . . . Time . | . . . . . . . . Parts Recycled . | . . . . . . . . Recycled Matter . | . . . . . . . . Retrieved Matter . | . . . . . . . . Retrieved Components . | . . . . . . . . Parts Scanalyzed . | . . . . . . . . Part Schematics Acquired . | . . . . . . . . Parts Damaged . | . . . . . . . . Bothacking | -11 -10 -10 -10 -9 -8 -8 -7 ------------ Run | Scr Mat Min Exi Min Mat Sto Fac Used RIF Installer . | . . . . . . . . Robots Hacked . | . . . . . . . . Non-combat . | . . . . . . . . Combat . | . . . . . . . . Robot Hacks Applied . | . . . . . . . . Relay Couplers Released . | . . . . . . . . Robots Rewired . | . . . . . . . . Allies Hacked . | . . . . . . . . Hacks Repelled . | . . . . . . . . Allies | -11 -10 -10 -10 -9 -8 -8 -7 -------- Run | Scr Mat Min Exi Min Mat Sto Fac Total Allies 5 | . . 3 . 2 . . . Largest Group 3 | . . 3 2 2 1 . . Highest-Rated Group 45 | . . 40 24 45 26 . . Highest-Rated Ally 31 | . . 16 16 31 26 . . Total Orders . | . . . . . . . . Ally Attacks 61 | . . 23 . 30 8 . . Total Damage 729 | . . 264 . 357 108 . . Kills 10 | . . 3 . 6 1 . . Allies Corrupted . | . . . . . . . . Allies Melted . | . . . . . . . . Intel | -11 -10 -10 -10 -9 -8 -8 -7 ------- Run | Scr Mat Min Exi Min Mat Sto Fac Robot Analysis Total . | . . . . . . . . Derelict Logs Recovered 3 | . . 2 . 1 . . . Drone Launches . | . . . . . . . . Drone Recoveries . | . . . . . . . . Exploration | -11 -10 -10 -10 -9 -8 -8 -7 ------------- Run | Scr Mat Min Exi Min Mat Sto Fac Turns Passed 2648 | 117 115 677 49 605 105 804 176 Spaces Moved 1493 | 53 60 477 34 432 65 326 46 Core 12 | 6 . . . 3 . . 3 Treads 202 | . . . . . . 159 43 Legs 1279 | 47 60 477 34 429 65 167 . Wheels . | . . . . . . . . Hover . | . . . . . . . . Flight . | . . . . . . . . Fastest Speed 50 | 50 120 120 120 120 120 120 180 Average Speed 129 | 112 120 120 120 120 120 151 218 Slowest Speed 800 | 120 120 120 120 300 120 180 800 Overloaded Moves . | . . . . . . . . Propulsion Burnouts . | . . . . . . . . Robots Hopped . | . . . . . . . . Cave-ins Triggered . | . . . . . . . . Exploration Rate (%) 30 | 4 17 86 8 77 11 40 1 Regions Visited 7 Branch Regions 4 Pre-discovered Areas 1 | . . . . 1 . . . Known Exits Taken . | . . . . . . . . Unknown Exits Taken 7 | 1 1 1 1 1 1 1 . Scrap Searched 4 | . . 2 . 2 . . . Spaces Dug 6 | . . . . . 2 4 . Terrain Destroyed 15 | . . . . 2 2 11 . Melee . | . . . . . . . . Projectile 6 | . . . . . 2 4 . AOE 9 | . . . . 2 . 7 . Actions | -11 -10 -10 -10 -9 -8 -8 -7 --------- Run | Scr Mat Min Exi Min Mat Sto Fac Total 1986 | 80 87 582 42 494 82 545 74 Wait 247 | . 14 100 9 18 2 104 . Move 1486 | 52 59 476 33 431 64 325 46 Hop . | . . . . . . . . Pick Up 18 | 5 3 2 . 5 1 2 . Fast Attach 40 | 7 . 1 . 11 2 14 5 Attach 15 | . . . . 1 5 7 2 Detach 9 | . . . . 1 1 7 . Swap 6 | . 1 . . 2 . 3 . Drop 16 | . 1 3 . 7 . 5 . Fire 132 | 16 9 . . 16 7 76 8 Melee 4 | . . . . . . . 4 Ram 4 | . . . . . . . 4 Kick . | . . . . . . . . Crush 7 | . . . . . . 2 5 Escape Stasis . | . . . . . . . . Rewire . | . . . . . . . . Trap 2 | . . . . 2 . . . Miscellaneous . | . . . . . . . . Route ------- -11/Scrapyard -10/Materials -10/Mines -10/Exiles -9/Mines -8/Materials -8/Storage -7/Factory History --------- Turn | Location | Event 5 | -11/Scrapyard | Discovered new exit (range 14) 118 | -11/Scrapyard | Entered Materials 175 | -10/Materials | Discovered new exit (range 10) 233 | -10/Materials | Entered Mines 305 | -10/Mines | Build established: Mutant 492 | -10/Mines | Found a hidden stash of uninstalled traps 538 | -10/Mines | Learned Materials stockpile data 538 | -10/Mines | Assisted by bots powering up and referring to "LRC-V3" 569 | -10/Mines | Learned Materials terminal intel 889 | -10/Mines | Deemed a non-threat by the Exiles lab entrance 890 | -10/Mines | Discovered new exit (range 5) 910 | -10/Mines | Entered Exiles 910 | -10/Exiles | Accompanied by 2 allies 931 | -10/Exiles | Discovered new exit (range 15) 959 | -10/Exiles | Entered Mines 959 | -9/Mines | Accompanied by 2 allies 975 | -9/Mines | Learned location of Zion (-6) 992 | -9/Mines | Assembled infested the area 1016 | -9/Mines | Met a Derelict bent on vengeance 1093 | -9/Mines | Core integrity fell below 50% 1113 | -9/Mines | Lost 8 parts (2p2n4w) 1291 | -9/Mines | Lost 5 parts (2p2n1w) 1416 | -9/Mines | Core integrity fell below 20% 1546 | -9/Mines | Discovered new exit (range 9) 1564 | -9/Mines | Entered Materials 1564 | -8/Materials | Accompanied by 1 ally 1564 | -8/Materials | Evolved 4 slots: Utility x4 1566 | -8/Materials | Loaded intel: 12 terminal locations 1569 | -8/Materials | Led the pair of lost Derelicts to an unsafe place 1588 | -8/Materials | Build established: Scavenger-Mutant 1601 | -8/Materials | Discovered new exit (range 16) 1669 | -8/Materials | Entered Storage 2103 | -8/Storage | Lost 3 parts (1p1n1w) 2142 | -8/Storage | Core integrity fell below 50% 2204 | -8/Storage | Lost 6 parts (1p4u1w) 2425 | -8/Storage | Discovered new exit (range 18) 2473 | -8/Storage | Entered Factory 2473 | -7/Factory | Evolved 2 slots: Power x1, Weapon x1 2570 | -7/Factory | Core integrity fell below 50% 2619 | -7/Factory | Lost 10 parts (3n3u4w) 2631 | -7/Factory | Core integrity fell below 20% 2649 | -7/Factory | Destroyed by Y-54 Guardian with Gatling Laser Last Messages --------------- 02575_ Acquired 75 matter. 02577_ Acquired Gatling Laser. 02581_ Acquired Imp. Deuterium Engine. 02581_ Lgt. Treads destroyed. 02588_ Gatling Laser destroyed. 02588_ Door malfunctions. 02590_ Acquired Lgt. Treads. 02591_ U-05 Engineer repairs door. 02594_ Crushed U-05 Engineer. 02594_ U-05 Engineer destroyed. 02598_ Acquired Lgt. Ion Engine. 02605_ Slammed into A-02 Transporter. 02605_ A-02 Transporter destroyed. 02606_ Acquired 49 matter. 02625_ Acquired Spear. 02630_ Lgt. Ion Engine destroyed. 02631_ Y-54 Guardian suffers critical hit. 02633_ Imp. Deuterium Engine destroyed. 02633_ Lgt. Treads destroyed. 02642_ Y-54 Guardian destroyed. Map ----- +----------------------------------------------------+ | ?????????????????????????????????????????????????? | | ?????????????????????????????????????????????????? | | ?????????????????????????????????????????????????? | | ?????????????????????????????????????????????????? | | ?????????????????????????????????????????????????? | | ?????????????????????????????????????????????????? | | ?????????????????????????????????????????????????? | | ?????????????????????????????????????????????????? | | ?????????????????????????????????????????????????? | | ?????????????????????????????????????????????????? | | ?????????????????????????????????????????????????? | | ?????????????????????????????????????????????????? | | ?????????????????????????????????????????????????? | | ?????????????????????????????????????????????????? | | ??#######????????????????????????????????????????? | | ??# ################??##?????????????????????? | | ??# # ## #?????????????????????? | | ??# # ## "" #???#?????????????????? | | ??# # ## "" #?? #?????????????????? | | ??# # ## "T #?? #?????????????????? | | ??# # ## "" #?? #?????????????????? | | ??# # ## "" #?? #?????????????????? | | ??# # ## #?? #?????????????????? | | ??# # ! ##] ! ### ###???????????????? | | ??# # # !% # #???????????????? | | ??+ + ####@##=! #???????????????? | | ??# # /=/ *Y!! #???????????????? | | ??# # ####!##= #???????????????? | | ??+ ##############??#!## #???????????????? | | ??###+###???????????????#!########???????????????? | | ????????????????????????#*#??????????????????????? | | ????????????????????????# #??????????????????????? | | ????????????????????????# #??????????????????????? | | ???????????????????????? ??????????????????????? | | ???????????????????????? ]??????????????????????? | | ???????????????????????? ??????????????????????? | | ????????????????????????# ??????????????????????? | | ????????????????????????? ??????????????????????? | | ????????????????????????? ??????????????????????? | | ?????????????????????????##??????????????????????? | | ?????????????????????????????????????????????????? | | ?????????????????????????????????????????????????? | | ?????????????????????????????????????????????????? | | | | | | | | | | | | | | | +----------------------------------------------------+ Best States ------------- Heat Dissipation 44 Energy Generation 21 Energy Capacity 315 Matter Stores 300 Matter Capacity 300 Sight Range 18 Robot Scan Range 10 Terrain Scan Range 16 Terrain Scan Density 60 Armor Coverage 375 Evasion (%) 40 Recoil Reduction 2 Defensive Hacking 10 Item Schematics ----------------- None Robot Schematics ------------------ None Fabricated ------------ Nothing Alien Tech Used ----------------- None Achievements -------------- None Challenges ------------ None Game ------ Seed DiametricFluxNullifier Manual? 0 Play Time 00:51:53 Cumulative 50.2 hours Start 2019.11.27 @ 11:24:00 End 2019.11.27 @ 16:08:39 Sessions 1 Manual Loads 0 Difficulty Rogue Special Mode None Game No. 90 Rogue 90 Adventurer 0 Explorer 0 Win Type - Total 0 Types 0/0/0/0/0/0/0 Lore% 34 Gallery% 46 Achievement% 28 Wizard Run 0 Options --------- ASCII 0 Keyboard 0 Movement Mouse Keybinds 0 Fullscreen 1 Font 12/Smallcaps Map View 83x54 Tactical HUD 1 Map Filters NONE Filters NONE Steam 1 RUN: f226df32-1c43-4314-9de4-ca7775b633d2